bitfinex/quotes_BTCUSD_20240831
["timestamp","ask_amount","ask_price","bid_price","bid_amount"]
[1725115537467,0.005,59244.0,59243.0,0.00243358]
[1725115537468,0.196793,59244.0,59243.0,0.00243358]
[1725115537695,1.647137,59244.0,59243.0,0.00243358]
[1725115538882,1.659137,59244.0,59243.0,0.00243358]
[1725115540439,1.68562332,59244.0,59243.0,0.00243358]
[1725115540709,1.86817496,59244.0,59243.0,0.00243358]
[1725115544859,1.88540168,59244.0,59243.0,0.00243358]
[1725115545328,1.88540168,59244.0,59240.0,0.00243358]
[1725115545329,1.186614,59241.0,59240.0,0.00243358]
[1725115545555,1.286614,59241.0,59240.0,0.00243358]
[1725115545740,1.35714902,59241.0,59240.0,0.00243358]
[1725115546204,1.35914902,59241.0,59240.0,0.00243358]
[1725115546438,1.42489202,59241.0,59240.0,0.00243358]
[1725115546646,1.76249602,59241.0,59240.0,0.00243358]
[1725115547290,1.77449602,59241.0,59240.0,0.00243358]
[1725115547495,1.78349602,59241.0,59240.0,0.00243358]
[1725115548158,1.77449602,59241.0,59240.0,0.00243358]
[1725115548378,1.76249602,59241.0,59240.0,0.00243358]
[1725115548619,1.79049602,59241.0,59240.0,0.00243358]
[1725115549900,1.79249602,59241.0,59240.0,0.00243358]
[1725115550993,1.84081265,59241.0,59240.0,0.00243358]
[1725115551202,1.79049602,59241.0,59240.0,0.00243358]
[1725115551839,1.79249602,59241.0,59240.0,0.00243358]
[1725115556886,1.81898464,59241.0,59240.0,0.00243358]
[1725115558620,2.55639264,59241.0,59240.0,0.00243358]
[1725115558834,7.60639264,59241.0,59240.0,0.00243358]
[1725115559048,7.65620706,59241.0,59240.0,0.00243358]
[1725115559280,7.62971844,59241.0,59240.0,0.00243358]
[1725115559759,7.61571844,59241.0,59240.0,0.00243358]
[1725115559974,7.62971844,59241.0,59240.0,0.00243358]
[1725115560429,7.61571844,59241.0,59240.0,0.00243358]
[1725115560659,7.67803507,59241.0,59240.0,0.00243358]
[1725115560886,7.66403507,59241.0,59240.0,0.00243358]
[1725115561107,7.67803507,59241.0,59240.0,0.00243358]
[1725115561339,7.66403507,59241.0,59240.0,0.00243358]
[1725115561804,1.534573,59227.0,59221.0,0.0637]
[1725115562016,1.536573,59227.0,59221.0,0.0637]
[1725115562229,1.636573,59227.0,59221.0,0.0637]
[1725115562667,6.686573,59227.0,59221.0,0.0637]
[1725115563135,6.684573,59227.0,59221.0,0.0637]
[1725115563367,2.88012464,59227.0,59221.0,0.0637]
[1725115563779,2.90512464,59227.0,59221.0,0.0637]
[1725115564418,2.90512464,59227.0,59219.0,0.008998]
[1725115564419,0.001,59226.0,59225.0,0.499]
[1725115564641,4.09091663,59226.0,59225.0,0.499]
[1725115564871,3.61046827,59226.0,59225.0,0.499]
[1725115565297,1.98115164,59226.0,59225.0,0.499]
[1725115565531,1.98015164,59226.0,59225.0,0.499]
[1725115565959,1.98115164,59226.0,59225.0,0.499]
[1725115566382,1.99415164,59226.0,59225.0,0.499]
[1725115566629,2.00815164,59226.0,59225.0,0.499]
[1725115567116,2.02255164,59226.0,59225.0,0.499]
[1725115567970,2.36024064,59226.0,59225.0,0.499]
[1725115569506,2.34584064,59226.0,59225.0,0.499]
[1725115570379,2.00815164,59226.0,59225.0,0.499]
[1725115572225,2.34584064,59226.0,59225.0,0.38107227]
[1725115572447,2.00815164,59226.0,59225.0,0.38107227]
[1725115573317,1.99415164,59226.0,59225.0,0.38107227]
[1725115573527,1.98115164,59226.0,59225.0,0.38107227]
[1725115573742,1.99515164,59226.0,59225.0,0.38107227]
[1725115574363,2.00915164,59226.0,59225.0,0.38107227]
[1725115574791,2.03564831,59226.0,59225.0,0.38107227]
[1725115575443,2.02164831,59226.0,59225.0,0.38107227]
[1725115576125,2.03564831,59226.0,59225.0,0.38197207]
[1725115577484,2.49164831,59226.0,59225.0,0.38197207]
[1725115577704,2.46515164,59226.0,59225.0,0.38197207]
[1725115577914,2.46615164,59226.0,59225.0,0.38197207]
[1725115578790,2.46515164,59226.0,59225.0,0.38197207]
[1725115580081,2.45515164,59226.0,59225.0,0.38197207]
[1725115580301,2.42115164,59226.0,59225.0,0.38197207]
[1725115580522,2.42115164,59226.0,59225.0,0.52727207]
[1725115580523,1.309911,59226.0,59225.0,0.52727207]
[1725115580735,0.972222,59226.0,59225.0,0.52727207]
[1725115580989,0.99871789,59226.0,59225.0,0.52727207]
[1725115581214,1.10355363,59226.0,59225.0,0.52727207]
[1725115581863,1.10355363,59226.0,59225.0,0.52827207]
[1725115581864,0.972222,59226.0,59225.0,0.52827207]
[1725115582338,0.972222,59226.0,59225.0,0.52727207]
[1725115582560,0.995222,59226.0,59225.0,0.52727207]
[1725115582773,0.981222,59226.0,59225.0,0.52727207]
[1725115583199,1.11556747,59226.0,59225.0,0.52727207]
[1725115583417,1.12956747,59226.0,59225.0,0.52727207]
[1725115583859,0.994222,59226.0,59225.0,0.52727207]
[1725115584066,0.656533,59226.0,59225.0,0.52727207]
[1725115584280,0.994222,59226.0,59225.0,0.52727207]
[1725115584514,0.487689,59226.0,59225.0,0.52727207]
[1725115584737,0.656533,59226.0,59225.0,0.52727207]
[1725115585188,0.68302594,59226.0,59225.0,0.52727207]
[1725115586952,0.34533694,59226.0,59225.0,0.52727207]
[1725115587168,0.68302594,59226.0,59225.0,0.52727207]
[1725115588966,0.78509583,59226.0,59225.0,0.52727207]
[1725115590039,0.68302594,59226.0,59225.0,0.52727207]
[1725115590288,1.02071494,59226.0,59225.0,0.52727207]
[1725115590520,0.68302594,59226.0,59225.0,0.52727207]
[1725115590736,0.68302594,59226.0,59225.0,0.52827207]
[1725115591166,0.68384494,59226.0,59225.0,0.52827207]
[1725115592073,0.68384494,59226.0,59225.0,0.52727207]
[1725115592720,0.70268994,59226.0,59225.0,0.52727207]
[1725115592966,0.53384494,59226.0,59225.0,0.52727207]
[1725115593176,0.87153394,59226.0,59225.0,0.52727207]
[1725115593597,0.507352,59226.0,59225.0,0.52727207]
[1725115594013,0.845041,59226.0,59225.0,0.52727207]
[1725115594839,0.968041,59226.0,59225.0,0.52727207]
[1725115601229,0.968041,59226.0,59225.0,0.52827207]
[1725115602025,0.630352,59226.0,59225.0,0.52827207]
[1725115602238,0.607352,59226.0,59225.0,0.52827207]
[1725115602652,0.100819,59226.0,59225.0,0.52827207]
[1725115602868,0.000819,59226.0,59225.0,0.69711907]
[1725115603326,0.000819,59226.0,59225.0,0.52827207]
[1725115603529,0.000819,59226.0,59225.0,0.69611907]
[1725115603940,0.000819,59226.0,59225.0,0.69711907]
[1725115604152,0.008819,59226.0,59225.0,0.69711907]
[1725115604373,0.03530924,59226.0,59225.0,0.69711907]
[1725115604580,0.03530924,59226.0,59225.0,0.69811907]
[1725115604797,0.03530924,59226.0,59225.0,1.37350907]
[1725115605642,0.04130924,59226.0,59225.0,1.37450907]
[1725115606124,0.03530924,59226.0,59225.0,1.37350907]
[1725115606544,0.03530924,59226.0,59225.0,1.37850907]
[1725115606545,0.001819,59226.0,59225.0,1.37850907]
[1725115606962,0.000819,59226.0,59225.0,1.37650907]
[1725115607168,0.000819,59226.0,59225.0,1.37250907]
[1725115607366,0.001819,59226.0,59225.0,1.38050907]
[1725115607575,0.002819,59226.0,59225.0,1.39050907]
[1725115608389,0.002819,59226.0,59225.0,1.38950907]
[1725115608574,0.001819,59226.0,59225.0,1.38250907]
[1725115608909,0.002819,59226.0,59225.0,1.39350907]
[1725115609125,0.002819,59226.0,59225.0,1.39450907]
[1725115611869,0.002819,59226.0,59225.0,1.73220407]
[1725115624707,0.002819,59226.0,59225.0,0.55027207]
[1725115624983,0.002819,59226.0,59225.0,0.71911907]
[1725115625193,0.002819,59226.0,59225.0,1.05681407]
[1725115625394,0.002819,59226.0,59225.0,0.71911907]
[1725115625614,0.002819,59226.0,59225.0,0.55027207]
[1725115627315,0.02930859,59226.0,59225.0,0.55027207]
[1725115630086,0.002819,59226.0,59225.0,0.47057207]
[1725115631532,0.002819,59226.0,59225.0,0.40497207]
[1725115631738,0.509352,59226.0,59225.0,0.40497207]
[1725115632763,0.847041,59226.0,59225.0,0.40497207]
[1725115634167,0.509352,59226.0,59225.0,0.40497207]
[1725115636279,0.53584357,59226.0,59225.0,0.40497207]
[1725115636753,0.53584357,59226.0,59225.0,0.40397207]
[1725115637821,0.53584357,59226.0,59225.0,0.40497207]
[1725115639934,0.509352,59226.0,59225.0,0.40497207]
[1725115642716,0.509352,59226.0,59225.0,0.40397207]
[1725115643259,0.53584388,59226.0,59225.0,0.40397207]
[1725115644583,0.53584388,59226.0,59225.0,0.40497207]
[1725115645454,0.02931088,59226.0,59225.0,0.46877207]
[1725115645665,0.02931088,59226.0,59225.0,1.05351407]
[1725115645878,0.002819,59226.0,59225.0,1.05351407]
[1725115646308,0.002819,59226.0,59225.0,0.71581907]
[1725115646737,0.002819,59226.0,59225.0,0.46877207]
[1725115646747,0.171663,59226.0,59225.0,0.46877207]
[1725115650553,0.19815414,59226.0,59225.0,0.46877207]
[1725115651425,0.58942575,59226.0,59225.0,0.40497207]
[1725115651856,0.53584314,59226.0,59225.0,0.40497207]
[1725115652096,0.87353214,59226.0,59225.0,0.40497207]
[1725115652311,0.87353214,59226.0,59225.0,0.40397207]
[1725115652959,0.85445342,59226.0,59225.0,0.40397207]
[1725115653231,0.82796228,59226.0,59225.0,0.40397207]
[1725115653877,0.85096228,59226.0,59225.0,0.40397207]
[1725115655004,0.90256296,59226.0,59225.0,0.40397207]
[1725115656494,0.92905503,59226.0,59225.0,0.40397207]
[1725115656912,0.92905503,59226.0,59225.0,0.50816928]
[1725115657364,0.92905503,59226.0,59225.0,0.46867207]
[1725115657573,0.92905503,59226.0,59225.0,0.46767207]
[1725115659849,0.92905503,59226.0,59225.0,0.40397207]
[1725115660063,0.90256296,59226.0,59225.0,0.40397207]
[1725115660281,0.61889004,59226.0,59225.0,0.40397207]
[1725115660489,0.78773404,59226.0,59225.0,0.40397207]
[1725115663336,0.81422597,59226.0,59225.0,0.40397207]
[1725115663784,0.82862597,59226.0,59225.0,0.40397207]
[1725115664443,0.81504497,59226.0,59225.0,0.40397207]
[1725115666068,0.78855304,59226.0,59225.0,0.40397207]
[1725115669533,0.81504536,59226.0,59225.0,0.40397207]
[1725115670936,0.81504536,59226.0,59225.0,0.46767207]
[1725115672277,0.78855304,59226.0,59225.0,0.46767207]
[1725115674263,0.78855304,59226.0,59225.0,0.54527207]
[1725115675550,0.81504558,59226.0,59225.0,0.54527207]
[1725115676425,0.81504558,59226.0,59225.0,0.40397207]
[1725115683043,1.15273458,59226.0,59225.0,0.40397207]
[1725115683284,1.27478134,59226.0,59225.0,0.40397207]
[1725115684005,1.27478134,59226.0,59225.0,0.39397207]
[1725115684476,1.27578134,59226.0,59225.0,0.39997207]
[1725115685008,1.27578134,59226.0,59225.0,0.38797207]
[1725115685471,1.27678134,59226.0,59225.0,0.39597207]
[1725115686868,1.14264204,59226.0,59225.0,0.39597207]
[1725115687123,1.24264204,59226.0,59225.0,0.39597207]
[1725115687593,1.24164204,59226.0,59225.0,0.38997207]
[1725115688061,1.24064204,59226.0,59225.0,0.38297207]
[1725115688313,1.37198124,59226.0,59225.0,0.38297207]
[1725115688543,1.37198124,59226.0,59225.0,0.38597207]
[1725115689715,1.24064204,59226.0,59225.0,0.38597207]
[1725115690172,1.26713608,59226.0,59225.0,0.38597207]
[1725115690641,1.25273608,59226.0,59225.0,0.38597207]
[1725115692966,1.22624204,59226.0,59225.0,0.38597207]
[1725115702461,1.25273584,59226.0,59225.0,0.38597207]
[1725115706261,1.22624204,59226.0,59225.0,0.38597207]
[1725115709653,1.25273605,59226.0,59225.0,0.38597207]
[1725115712386,1.22624204,59226.0,59225.0,0.38597207]
[1725115715751,1.25273582,59226.0,59225.0,0.38597207]
[1725115720208,1.22624204,59226.0,59225.0,0.38597207]
[1725115723392,1.25273571,59226.0,59225.0,0.38597207]
[1725115724969,1.25260218,59226.0,59225.0,0.38597207]
[1725115726317,1.22610851,59226.0,59225.0,0.38597207]
[1725115727382,1.24083387,59226.0,59225.0,0.38597207]
[1725115728060,0.56545587,59226.0,59225.0,0.44897207]
[1725115728283,0.56545587,59226.0,59225.0,0.50181928]
[1725115729573,0.5919486,59226.0,59225.0,0.50181928]
[1725115729775,0.5919486,59226.0,59225.0,0.44897207]
[1725115731258,0.5919486,59226.0,59225.0,0.44997207]
[1725115732102,0.29615573,59226.0,59225.0,0.44997207]
[1725115732305,0.269663,59226.0,59225.0,0.52557207]
[1725115732506,0.607352,59226.0,59225.0,0.52457207]
[1725115738047,0.607352,59226.0,59225.0,0.52557207]
[1725115738682,0.6338449,59226.0,59225.0,0.52557207]
[1725115738892,0.1273119,59226.0,59225.0,0.52557207]
[1725115739141,0.0273119,59226.0,59225.0,0.69441907]
[1725115739352,0.0273119,59226.0,59225.0,1.03211407]
[1725115739568,0.0273119,59226.0,59225.0,1.03111407]
[1725115740298,0.0273119,59226.0,59225.0,1.36980907]
[1725115740977,0.000819,59226.0,59225.0,1.36980907]
[1725115741907,0.000819,59226.0,59225.0,1.36880907]
[1725115742141,0.000819,59226.0,59225.0,1.36980907]
[1725115743740,0.000819,59226.0,59225.0,1.03211407]
[1725115744407,0.000819,59226.0,59225.0,1.36980907]
[1725115744653,0.000819,59226.0,59225.0,1.36880907]
[1725115744867,0.000819,59226.0,59225.0,1.36980907]
[1725115745547,0.000819,59226.0,59225.0,1.4204592]
[1725115745761,0.02730834,59226.0,59225.0,1.36980907]
[1725115747109,0.02730834,59226.0,59225.0,1.70750407]
[1725115747339,0.02730834,59226.0,59225.0,1.36980907]
[1725115747557,0.02730834,59226.0,59225.0,1.70750407]
[1725115747781,0.000819,59226.0,59225.0,1.70850407]
[1725115748225,0.000818,59240.0,59239.0,0.169807]
[1725115748447,0.000818,59240.0,59239.0,0.65709767]
[1725115748874,0.000818,59240.0,59239.0,0.99471267]
[1725115749318,0.000818,59240.0,59239.0,0.99371267]
[1725115749965,0.001818,59240.0,59239.0,1.00371267]
[1725115750356,0.001818,59240.0,59239.0,1.00271267]
[1725115751206,0.002818,59240.0,59239.0,1.01471267]
[1725115751638,0.02830286,59240.0,59239.0,1.00471267]
[1725115751926,0.02930286,59240.0,59239.0,1.01571267]
[1725115752163,0.02930286,59240.0,59239.0,0.674722]
[1725115757155,0.002818,59240.0,59239.0,0.674722]
[1725115759366,0.002818,59240.0,59239.0,0.337107]
[1725115761788,0.002818,59240.0,59239.0,1.012337]
[1725115761789,0.0293031,59240.0,59239.0,1.012337]
[1725115762012,0.0293031,59240.0,59239.0,1.349952]
[1725115766995,0.002818,59240.0,59239.0,1.349952]
[1725115767713,0.002818,59240.0,59239.0,1.687567]
[1725115767948,0.002818,59240.0,59239.0,1.688567]
[1725115769088,0.002818,59240.0,59239.0,1.687567]
[1725115769763,0.002818,59240.0,59239.0,1.6884668]
[1725115770237,0.002818,59240.0,59239.0,1.6894668]
[1725115772998,0.002818,59240.0,59239.0,1.6934668]
[1725115773236,0.002818,59240.0,59239.0,1.6944668]
[1725115773939,0.001818,59240.0,59239.0,1.6824668]
[1725115774382,0.002818,59240.0,59239.0,1.6964668]
[1725115775377,0.001818,59240.0,59239.0,1.6854668]
[1725115775604,0.001818,59240.0,59239.0,1.6994668]
[1725115776072,0.001818,59240.0,59239.0,1.6984668]
[1725115776292,0.001818,59240.0,59239.0,1.6994668]
[1725115779217,0.001818,59240.0,59239.0,1.7004668]
[1725115783641,0.001818,59240.0,59239.0,1.75075253]
[1725115784304,0.001818,59240.0,59239.0,1.7004668]
[1725115784537,0.001818,59240.0,59239.0,1.75075253]
[1725115785494,0.001818,59240.0,59239.0,1.75076774]
[1725115786600,0.001818,59240.0,59239.0,1.7507776]
[1725115787080,0.001818,59240.0,59239.0,1.7004668]
[1725115788275,0.001818,59240.0,59239.0,1.77591821]
[1725115789223,0.001818,59240.0,59239.0,2.15078949]
[1725115790434,0.001818,59240.0,59239.0,2.07533791]
[1725115791317,0.001818,59240.0,59239.0,2.17605836]
[1725115793366,0.001818,59240.0,59239.0,2.07533791]
[1725115795817,0.001818,59240.0,59239.0,2.17614552]
[1725115796056,0.001818,59240.0,59239.0,2.07433791]
[1725115796290,0.001818,59240.0,59239.0,2.06933791]
[1725115796530,0.001818,59240.0,59239.0,1.77008845]
[1725115796740,0.001818,59240.0,59239.0,2.06936872]
[1725115796952,0.001818,59240.0,59239.0,2.17017633]
[1725115797864,0.001818,59240.0,59239.0,2.06936872]
[1725115799192,0.001818,59240.0,59239.0,2.17017633]
[1725115800284,0.001818,59240.0,59239.0,2.17020991]
[1725115801364,0.001818,59240.0,59239.0,2.06935217]
[1725115802773,0.32740228,59256.0,59254.0,0.168764]
[1725115802984,0.27409015,59344.0,59255.0,0.0168764]
[1725115802985,0.17076855,59307.0,59255.0,0.0168764]
[1725115804114,0.001,59256.0,59255.0,0.0168764]
[1725115804566,0.0418,59257.0,59255.0,0.0168764]
[1725115804821,0.0418,59257.0,59256.0,0.05231774]
[1725115805039,0.0438,59257.0,59256.0,0.05231774]
[1725115805712,0.0378,59257.0,59256.0,0.05231774]
[1725115805963,0.0378,59257.0,59256.0,0.04931774]
[1725115806638,0.0418,59257.0,59256.0,0.04931774]
[1725115807757,0.0418,59257.0,59256.0,0.38683574]
[1725115807975,0.0438,59257.0,59256.0,0.55559474]
[1725115809394,0.006,59257.0,59256.0,0.55559474]
[1725115811606,0.006,59257.0,59256.0,0.89311274]
[1725115811826,0.004,59257.0,59256.0,0.89311274]
[1725115812068,0.000819,59258.0,59257.0,0.506268]
[1725115812286,0.000819,59258.0,59257.0,0.168756]
[1725115812511,0.000819,59258.0,59257.0,0.17213077]
[1725115812697,0.000819,59258.0,59257.0,0.52712047]
[1725115813155,0.000819,59258.0,59257.0,0.18960847]
[1725115813455,0.000819,59258.0,59257.0,0.1862337]
[1725115813488,0.000819,59258.0,59257.0,0.1922337]
[1725115814591,0.02729572,59258.0,59257.0,0.1922337]
[1725115815113,0.02729572,59258.0,59257.0,0.2002337]
[1725115815661,0.02729572,59258.0,59257.0,0.0314777]
[1725115817170,0.000819,59258.0,59257.0,0.0314777]
[1725115817997,0.000819,59258.0,59257.0,1.3518697]
[1725115818664,0.000819,59258.0,59257.0,1.42776341]
[1725115819485,0.000819,59258.0,59257.0,1.3518697]
[1725115820600,0.000819,59258.0,59257.0,1.31935005]
[1725115822997,0.000819,59258.0,59257.0,1.31934263]
[1725115823562,0.000819,59258.0,59257.0,1.38174263]
[1725115826837,0.000819,59258.0,59257.0,1.80718975]
[1725115827037,0.000819,59258.0,59257.0,1.70599668]
[1725115827242,0.000819,59258.0,59257.0,1.80718975]
[1725115827450,0.000819,59258.0,59257.0,1.70599668]
[1725115827676,0.000819,59258.0,59257.0,2.15070175]
[1725115828096,0.000819,59258.0,59257.0,2.04950868]
[1725115828495,0.001819,59258.0,59257.0,2.06150868]
[1725115828944,0.16869,59281.0,59276.0,0.1687]
[1725115829152,0.16869,59281.0,59277.0,0.01687]
[1725115830020,0.16869,59281.0,59277.0,0.01587]
[1725115830472,0.03047052,59281.0,59277.0,0.01587]
[1725115830699,0.16869,59280.0,59277.0,0.01587]
[1725115831575,0.16869,59280.0,59276.0,0.00337369]
[1725115831777,0.16869,59280.0,59276.0,0.17207569]
[1725115832000,0.17029,59280.0,59276.0,0.17207569]
[1725115832708,0.002,59281.0,59263.0,0.55590361]
[1725115832709,0.002,59281.0,59280.0,0.16869]
[1725115832938,0.0016,59284.0,59280.0,0.185559]
[1725115833166,0.0016,59284.0,59280.0,0.354248]
[1725115833399,0.00819,59286.0,59284.0,0.168678]
[1725115833610,0.00819,59286.0,59285.0,0.5094022]
[1725115834047,0.03465622,59286.0,59285.0,0.5094022]
[1725115834282,0.03465622,59286.0,59285.0,0.1720492]
[1725115834487,0.03465622,59286.0,59285.0,0.21936694]
[1725115834722,0.03665622,59286.0,59285.0,0.21936694]
[1725115836138,0.03465622,59286.0,59285.0,0.21936694]
[1725115836397,0.03465622,59286.0,59285.0,0.05069094]
[1725115836603,0.03665622,59286.0,59285.0,0.05069094]
[1725115836806,0.03665622,59286.0,59285.0,0.21936694]
[1725115837005,0.01415091,59291.0,59285.0,0.21936694]
[1725115837322,0.168665,59290.0,59286.0,0.0168764]
[1725115838159,0.168665,59289.0,59286.0,0.0168764]
[1725115838401,0.505981,59291.0,59286.0,0.0168764]
[1725115838603,0.168663,59290.0,59286.0,0.0168764]
[1725115838897,0.168665,59289.0,59287.0,0.02513276]
[1725115839263,0.168665,59289.0,59286.0,0.0168764]
[1725115839264,0.0456,59293.0,59286.0,0.0168764]
[1725115839514,0.168666,59289.0,59286.0,0.0168764]
[1725115839866,0.168668,59288.0,59286.0,0.0168764]
[1725115840317,0.19513456,59288.0,59286.0,0.0178764]
[1725115840475,0.19513456,59288.0,59286.0,0.001]
[1725115841298,0.19513456,59288.0,59284.0,0.0624]
[1725115842402,0.19513456,59288.0,59285.0,0.00337318]
[1725115842856,0.19813456,59288.0,59285.0,0.00337318]
[1725115843122,0.19513456,59288.0,59284.0,0.0624]
[1725115843355,0.19813456,59288.0,59284.0,0.0624]
[1725115843571,0.168673,59286.0,59284.0,0.0624]
[1725115843787,0.168678,59285.0,59281.0,0.0605]
[1725115846158,0.169678,59285.0,59281.0,0.0605]
[1725115848507,0.168683,59283.0,59281.0,0.0605]
[1725115849136,0.169679,59285.0,59281.0,0.0605]
[1725115849368,0.16868,59284.0,59281.0,0.0605]
[1725115849980,0.16868,59284.0,59281.0,0.0635]
[1725115850210,0.506055,59282.0,59281.0,0.002]
[1725115850418,0.0016,59286.0,59278.0,0.0605]
[1725115850419,0.50608,59279.0,59278.0,0.0605]
[1725115850635,0.168693,59279.0,59278.0,0.0605]
[1725115851456,0.50608,59279.0,59278.0,0.0605]
[1725115851723,0.50608,59279.0,59278.0,0.07488998]
[1725115851934,0.168693,59279.0,59278.0,0.07488998]
[1725115852884,0.168693,59279.0,59278.0,0.08088998]
[1725115853295,0.337377,59281.0,59278.0,0.08088998]
[1725115853499,0.168693,59279.0,59278.0,0.08688998]
[1725115853854,0.168693,59279.0,59278.0,0.0733998]
[1725115854299,0.19516176,59279.0,59278.0,0.0673998]
[1725115855142,0.19516176,59279.0,59278.0,0.0613998]
[1725115855557,0.19516176,59279.0,59278.0,0.0653998]
[1725115855981,0.19516176,59279.0,59278.0,0.0643998]
[1725115856198,0.19516176,59279.0,59278.0,0.09605016]
[1725115856412,0.19516176,59279.0,59278.0,0.09905016]
[1725115857100,0.168693,59279.0,59278.0,0.09905016]
[1725115857309,0.168693,59279.0,59278.0,0.10505016]
[1725115860472,0.19516108,59279.0,59278.0,0.10505016]
[1725115860917,0.168693,59279.0,59278.0,0.10505016]
[1725115861161,0.337367,59283.0,59278.0,0.10505016]
[1725115861162,0.168692,59280.0,59278.0,0.10505016]
[1725115861402,0.168692,59280.0,59279.0,0.03254378]
[1725115863187,0.168688,59281.0,59279.0,0.03254378]
[1725115863400,0.382151,59289.0,59281.0,0.247285]
[1725115863401,0.168677,59285.0,59281.0,0.247285]
[1725115863614,0.168677,59285.0,59282.0,0.09245036]
[1725115864041,0.19514415,59285.0,59282.0,0.09245036]
[1725115864541,0.168682,59283.0,59279.0,0.234492]
[1725115864783,0.168682,59283.0,59279.0,0.229492]
[1725115864999,0.168682,59283.0,59278.0,0.3382878]
[1725115865000,0.168692,59280.0,59278.0,0.0008998]
[1725115865431,0.168692,59280.0,59278.0,0.02402986]
[1725115865672,0.337366,59283.0,59279.0,0.004]
[1725115865901,0.168689,59281.0,59280.0,0.0608]
[1725115867686,0.16868,59284.0,59280.0,0.23249]
[1725115867913,0.16868,59284.0,59281.0,0.04443748]
[1725115868155,0.16868,59284.0,59282.0,0.0608]
[1725115869076,0.506046,59283.0,59282.0,0.0608]
[1725115869296,0.168682,59283.0,59282.0,0.0608]
[1725115869751,0.168682,59283.0,59282.0,0.0618]
[1725115869987,0.33735,59286.0,59282.0,0.09308926]
[1725115870218,0.33735,59286.0,59282.0,0.0618]
[1725115870443,0.16868,59284.0,59282.0,0.0608]
[1725115870700,0.16868,59284.0,59282.0,0.0628]
[1725115871146,0.168682,59283.0,59282.0,0.002]
[1725115872028,0.168682,59283.0,59281.0,0.0008998]
[1725115872253,0.168682,59283.0,59281.0,0.03197894]
[1725115872756,0.0016,59286.0,59281.0,0.0008998]
[1725115872757,0.843425,59282.0,59281.0,0.0008998]
[1725115873011,1.182395,59282.0,59281.0,0.0008998]
[1725115873483,1.2088633,59282.0,59281.0,0.0008998]
[1725115873957,1.2088633,59282.0,59281.0,0.0018998]
[1725115874182,1.2088633,59282.0,59281.0,0.0028998]
[1725115874407,1.2088633,59282.0,59281.0,0.0048998]
[1725115875341,1.2088633,59282.0,59281.0,0.0028998]
[1725115876258,0.8698933,59282.0,59281.0,0.0058998]
[1725115876472,0.8698933,59282.0,59281.0,0.0721998]
[1725115877172,0.843425,59282.0,59281.0,0.0721998]
[1725115880553,0.86989286,59282.0,59281.0,0.0721998]
[1725115881223,0.87149286,59282.0,59281.0,0.0058998]
[1725115881467,1.027393,59282.0,59281.0,0.0058998]
[1725115881712,1.464763,59282.0,59281.0,0.0058998]
[1725115882404,1.37586286,59282.0,59281.0,0.0058998]
[1725115887007,1.349395,59282.0,59281.0,0.0058998]
[1725115890322,1.37586522,59282.0,59281.0,0.0058998]
[1725115892118,1.33026522,59282.0,59281.0,0.0058998]
[1725115892342,1.30726522,59282.0,59281.0,0.0058998]
[1725115893725,1.30726522,59282.0,59281.0,0.02161974]
[1725115893957,1.33026522,59282.0,59281.0,0.0058998]
[1725115895094,0.96989522,59282.0,59281.0,0.0058998]
[1725115896454,0.96989522,59282.0,59281.0,0.0683998]
[1725115897156,0.943425,59282.0,59281.0,0.0683998]
[1725115897854,0.606055,59282.0,59281.0,0.0683998]
[1725115899384,0.943425,59282.0,59281.0,0.0683998]
[1725115900488,0.96989408,59282.0,59281.0,0.0683998]
[1725115901797,0.63252408,59282.0,59281.0,0.0683998]
[1725115907147,0.606055,59282.0,59281.0,0.0683998]
[1725115911228,0.63252391,59282.0,59281.0,0.0683998]
[1725115913605,0.29515391,59282.0,59281.0,0.0683998]
[1725115914244,0.63252391,59282.0,59281.0,0.0683998]
[1725115916958,0.606055,59282.0,59281.0,0.0683998]
[1725115919660,0.943425,59282.0,59281.0,0.0683998]
[1725115920540,0.96989402,59282.0,59281.0,0.0683998]
[1725115923107,1.33026402,59282.0,59281.0,0.0058998]
[1725115923342,1.303795,59282.0,59281.0,0.0058998]
[1725115926602,1.33026434,59282.0,59281.0,0.0058998]
[1725115927532,1.33026434,59282.0,59281.0,0.0694998]
[1725115929949,1.06157934,59282.0,59281.0,0.0694998]
[1725115930166,1.23026434,59282.0,59281.0,0.0694998]
[1725115930378,1.203795,59282.0,59281.0,0.0694998]
[1725115932157,1.303795,59282.0,59281.0,0.0694998]
[1725115933774,1.33026517,59282.0,59281.0,0.0694998]
[1725115937118,1.303795,59282.0,59281.0,0.0694998]
[1725115939039,0.966425,59282.0,59281.0,0.0694998]
[1725115939253,0.967243,59282.0,59281.0,0.0694998]
[1725115940373,0.944243,59282.0,59281.0,0.0694998]
[1725115940596,0.97071232,59282.0,59281.0,0.0694998]
[1725115944972,0.944243,59282.0,59281.0,0.0694998]
[1725115946981,0.97071413,59282.0,59281.0,0.0694998]
[1725115956771,0.99371413,59282.0,59281.0,0.0058998]
[1725115957943,1.33108413,59282.0,59281.0,0.0058998]
[1725115960048,1.304613,59282.0,59281.0,0.0058998]
[1725115963441,1.33108365,59282.0,59281.0,0.0058998]
[1725115966102,1.304613,59282.0,59281.0,0.0058998]
[1725115967677,1.643583,59282.0,59281.0,0.0058998]
[1725115967894,1.641983,59282.0,59281.0,0.0058998]
[1725115968560,1.641983,59282.0,59281.0,0.0028998]
[1725115968820,1.641983,59282.0,59281.0,0.0008998]
[1725115969028,1.641983,59282.0,59281.0,0.0018998]
[1725115969242,1.644983,59282.0,59281.0,0.0028998]
[1725115974436,1.67145445,59282.0,59281.0,0.0028998]
[1725115976033,1.33408445,59282.0,59281.0,0.0028998]
[1725115977102,0.947243,59282.0,59281.0,0.0646998]
[1725115977309,0.947243,59282.0,59281.0,0.07891974]
[1725115981013,0.97371357,59282.0,59281.0,0.07891974]
[1725115983485,0.97371357,59282.0,59281.0,0.0646998]
[1725115987194,0.947243,59282.0,59281.0,0.0646998]
[1725115990511,0.97371223,59282.0,59281.0,0.0646998]
[1725115992525,0.947243,59282.0,59281.0,0.0646998]
[1725115993394,1.284613,59282.0,59281.0,0.0646998]
[1725115993881,1.307613,59282.0,59281.0,0.0646998]
[1725115994097,1.33408232,59282.0,59281.0,0.0646998]
[1725115995191,1.33408232,59282.0,59281.0,0.0028998]
[1725115996964,1.307613,59282.0,59281.0,0.0028998]
[1725116000365,1.33408299,59282.0,59281.0,0.0028998]
[1725116001471,1.33408299,59282.0,59281.0,0.0638998]
[1725116001702,1.33408299,59282.0,59281.0,0.1462998]
[1725116002841,0.63634299,59282.0,59281.0,0.16110974]
[1725116003061,0.03028799,59282.0,59281.0,0.16110974]